[Event "Late-Titled-Tuesday-Blitz-February-13-2024"]
[Site "Chess.com"]
[Date "2024.02.13"]
[Round "1"]
[White "FairChess_on_YouTube"]
[Black "BigAl"]
[Result "1-0"]
[WhiteElo "3084"]
[BlackElo "2523"]
[TimeControl "180+1"]
[EndTime "14:07:29 PST"]
[Termination "FairChess_on_YouTube won by resignation"]

1. e4 {[%clk 0:03:00.9]} 1... c6 {[%clk 0:02:59.4]} 2. Nf3 {[%clk 0:02:59.3]}
2... g6 {[%clk 0:02:58.3]} 3. h4 {[%clk 0:02:56]} 3... h5 {[%clk 0:02:57.9]} 4.
d4 {[%clk 0:02:55]} 4... Bg7 {[%clk 0:02:58.2]} 5. Ng5 {[%clk 0:02:49.2]} 5...
d5 {[%clk 0:02:41.8]} 6. e5 {[%clk 0:02:46.6]} 6... Nh6 {[%clk 0:02:41.2]} 7.
Bd3 {[%clk 0:02:41.2]} 7... e6 {[%clk 0:02:18.5]} 8. c3 {[%clk 0:02:33.2]} 8...
c5 {[%clk 0:02:18.7]} 9. Nd2 {[%clk 0:02:21.2]} 9... Nc6 {[%clk 0:02:15.8]} 10.
Ndf3 {[%clk 0:02:20.3]} 10... cxd4 {[%clk 0:02:09.1]} 11. cxd4 {[%clk
0:02:20.1]} 11... Qb6 {[%clk 0:02:05.9]} 12. O-O {[%clk 0:02:14]} 12... Bd7
{[%clk 0:02:06.1]} 13. Be3 {[%clk 0:02:12.5]} 13... Nb4 {[%clk 0:02:02.5]} 14.
Nxf7 {[%clk 0:02:02.5]} 14... Kxf7 {[%clk 0:01:21.3]} 15. Ng5+ {[%clk
0:02:02.2]} 15... Kg8 {[%clk 0:01:22]} 16. Bxg6 {[%clk 0:02:02]} 16... Nf5
{[%clk 0:01:09.2]} 17. Bf7+ {[%clk 0:01:44.4]} 17... Kf8 {[%clk 0:01:09]} 18. a3
{[%clk 0:01:34.8]} 18... Na6 {[%clk 0:01:07.1]} 19. Bxh5 {[%clk 0:01:08.5]}
19... Be8 {[%clk 0:01:01.6]} 20. Bxe8 {[%clk 0:00:55.6]} 20... Rxe8 {[%clk
0:01:02.5]} 21. g3 {[%clk 0:00:55.9]} 21... Kg8 {[%clk 0:00:59.2]} 22. Rc1
{[%clk 0:00:53.5]} 22... Rf8 {[%clk 0:00:33.7]} 23. Qg4 {[%clk 0:00:50.7]} 23...
Nc7 {[%clk 0:00:24.8]} 24. Rfd1 {[%clk 0:00:24.6]} 24... Ne8 {[%clk 0:00:21.3]}
25. b4 {[%clk 0:00:21]} 25... a6 {[%clk 0:00:17.3]} 26. Rc8 {[%clk 0:00:18.3]}
26... Qb5 {[%clk 0:00:16.1]} 27. Nxe6 {[%clk 0:00:16.8]} 27... Qd7 {[%clk
0:00:16.5]} 28. Nxf8 {[%clk 0:00:14.9]} 28... Qxc8 {[%clk 0:00:14.5]} 29. Ng6
{[%clk 0:00:15.5]} 29... Qd7 {[%clk 0:00:12.5]} 30. Qxf5 {[%clk 0:00:14.6]}
30... Qxf5 {[%clk 0:00:12.9]} 31. Ne7+ {[%clk 0:00:14.8]} 31... Kf7 {[%clk
0:00:13.8]} 32. Nxf5 {[%clk 0:00:15.4]} 32... Ke6 {[%clk 0:00:14.5]} 33. g4
{[%clk 0:00:15]} 33... Bf8 {[%clk 0:00:13.9]} 34. h5 {[%clk 0:00:15]} 34... Rg8
{[%clk 0:00:13]} 35. f3 {[%clk 0:00:15.4]} 35... Nf6 {[%clk 0:00:13.5]} 36. exf6
{[%clk 0:00:15.2]} 36... Kxf6 {[%clk 0:00:13.5]} 37. Bf4 {[%clk 0:00:15.4]}
37... a5 {[%clk 0:00:12.5]} 38. bxa5 {[%clk 0:00:15]} 38... Bxa3 {[%clk
0:00:12.9]} 39. Rb1 {[%clk 0:00:15.6]} 39... Rb8 {[%clk 0:00:12.5]} 40. Rb6+
{[%clk 0:00:15.5]} 40... Kf7 {[%clk 0:00:12.1]} 41. Bxb8 {[%clk 0:00:16.4]} 1-0

[Event "Late-Titled-Tuesday-Blitz-February-13-2024"]
[Site "Chess.com"]
[Date "2024.02.13"]
[Round "1"]
[White "Ykow"]
[Black "BogdanDeac"]
[Result "0-1"]
[WhiteElo "2509"]
[BlackElo "3006"]
[TimeControl "180+1"]
[EndTime "14:07:29 PST"]
[Termination "BogdanDeac won by resignation"]

1. e4 {[%clk 0:03:00.9]} 1... c6 {[%clk 0:03:00.4]} 2. Nf3 {[%clk 0:02:59]} 2...
d5 {[%clk 0:03:01.3]} 3. d3 {[%clk 0:02:59.2]} 3... Nd7 {[%clk 0:03:00.4]} 4. g3
{[%clk 0:02:55.2]} 4... dxe4 {[%clk 0:03:00]} 5. dxe4 {[%clk 0:02:54.6]} 5... e5
{[%clk 0:03:00.6]} 6. Bg2 {[%clk 0:02:53]} 6... Ngf6 {[%clk 0:03:01.1]} 7. Qe2
{[%clk 0:02:51.3]} 7... Bc5 {[%clk 0:03:01]} 8. O-O {[%clk 0:02:50.6]} 8... O-O
{[%clk 0:03:01.6]} 9. Rd1 {[%clk 0:02:47.5]} 9... Ng4 {[%clk 0:02:59.8]} 10. Rf1
{[%clk 0:02:39.6]} 10... a5 {[%clk 0:02:59.9]} 11. h3 {[%clk 0:02:38]} 11...
Ngf6 {[%clk 0:02:59.2]} 12. Rd1 {[%clk 0:02:36]} 12... Qc7 {[%clk 0:02:53.8]}
13. a4 {[%clk 0:02:33.7]} 13... b6 {[%clk 0:02:53.5]} 14. Nh4 {[%clk 0:02:28.5]}
14... Ba6 {[%clk 0:02:51.2]} 15. Qf3 {[%clk 0:02:27]} 15... Rfd8 {[%clk
0:02:42.3]} 16. Nf5 {[%clk 0:01:56.3]} 16... g6 {[%clk 0:02:16.4]} 17. Nh6+
{[%clk 0:01:30.2]} 17... Kg7 {[%clk 0:02:15.6]} 18. Bg5 {[%clk 0:01:29.9]} 18...
Be7 {[%clk 0:02:10.1]} 19. Ng4 {[%clk 0:01:00.5]} 19... Re8 {[%clk 0:01:52]} 20.
Nxf6 {[%clk 0:00:46.8]} 20... Nxf6 {[%clk 0:01:49.2]} 21. Nd2 {[%clk 0:00:41.2]}
21... Rad8 {[%clk 0:01:47.8]} 22. Bf1 {[%clk 0:00:39.5]} 22... Bxf1 {[%clk
0:01:47]} 23. Nxf1 {[%clk 0:00:38.8]} 23... h6 {[%clk 0:01:43.5]} 24. Bxf6+
{[%clk 0:00:38.4]} 24... Bxf6 {[%clk 0:01:43.7]} 25. h4 {[%clk 0:00:39.3]} 25...
h5 {[%clk 0:01:42.7]} 26. Kg2 {[%clk 0:00:38.9]} 26... Be7 {[%clk 0:01:42.6]}
27. Ne3 {[%clk 0:00:38.5]} 27... Bc5 {[%clk 0:01:39.6]} 28. c3 {[%clk
0:00:38.8]} 28... Qe7 {[%clk 0:01:39]} 29. Nc4 {[%clk 0:00:38.3]} 29... Qe6
{[%clk 0:01:38.8]} 30. Qe2 {[%clk 0:00:37.2]} 30... f6 {[%clk 0:01:30.6]} 31. b3
{[%clk 0:00:36.6]} 31... Kf7 {[%clk 0:01:23.9]} 32. Rxd8 {[%clk 0:00:36.2]}
32... Rxd8 {[%clk 0:01:24.5]} 33. Rd1 {[%clk 0:00:36.5]} 33... Ke7 {[%clk
0:01:25.1]} 34. Rxd8 {[%clk 0:00:35.8]} 34... Kxd8 {[%clk 0:01:26]} 35. Qd2+
{[%clk 0:00:34.7]} 35... Kc7 {[%clk 0:01:23]} 36. Qh6 {[%clk 0:00:34.3]} 36...
Qf7 {[%clk 0:01:23.2]} 37. Qd2 {[%clk 0:00:29.7]} 37... Qf8 {[%clk 0:01:17.4]}
38. f4 {[%clk 0:00:29.2]} 38... exf4 {[%clk 0:01:13.4]} 39. Qxf4+ {[%clk
0:00:30.1]} 39... Kb7 {[%clk 0:01:11]} 40. e5 {[%clk 0:00:29.4]} 40... f5 {[%clk
0:01:11.2]} 41. e6 {[%clk 0:00:29.2]} 41... Qd8 {[%clk 0:01:00.7]} 42. Qe5
{[%clk 0:00:22.3]} 42... Be7 {[%clk 0:00:47.4]} 43. Qe3 {[%clk 0:00:20]} 43...
b5 {[%clk 0:00:40.8]} 44. axb5 {[%clk 0:00:19]} 44... cxb5 {[%clk 0:00:41.2]}
45. Ne5 {[%clk 0:00:18.9]} 45... Qd5+ {[%clk 0:00:40.3]} 46. Qf3 {[%clk
0:00:17.5]} 46... Qxf3+ {[%clk 0:00:39]} 47. Kxf3 {[%clk 0:00:18.4]} 47... a4
{[%clk 0:00:39.4]} 48. bxa4 {[%clk 0:00:17.2]} 48... bxa4 {[%clk 0:00:40.3]} 49.
Nd3 {[%clk 0:00:10.5]} 49... a3 {[%clk 0:00:37.6]} 50. Nc1 {[%clk 0:00:10.5]}
50... Kc6 {[%clk 0:00:38.2]} 51. Ke3 {[%clk 0:00:09.1]} 51... Kd5 {[%clk
0:00:37.3]} 52. Kd3 {[%clk 0:00:08.9]} 52... Kxe6 {[%clk 0:00:35.9]} 0-1

[Event "Late-Titled-Tuesday-Blitz-February-13-2024"]
[Site "Chess.com"]
[Date "2024.02.13"]
[Round "1"]
[White "cande_francisco"]
[Black "ChristopherYoo"]
[Result "0-1"]
[WhiteElo "2502"]
[BlackElo "2963"]
[TimeControl "180+1"]
[EndTime "14:07:30 PST"]
[Termination "ChristopherYoo won by resignation"]

1. e4 {[%clk 0:03:00.9]} 1... c5 {[%clk 0:02:58.9]} 2. Nf3 {[%clk 0:03:01.1]}
2... d6 {[%clk 0:02:59.3]} 3. Bb5+ {[%clk 0:03:00.7]} 3... Bd7 {[%clk
0:02:54.7]} 4. Bxd7+ {[%clk 0:03:00.1]} 4... Nxd7 {[%clk 0:02:55.6]} 5. O-O
{[%clk 0:02:59.9]} 5... Ngf6 {[%clk 0:02:56.1]} 6. Qe2 {[%clk 0:03:00.6]} 6...
e6 {[%clk 0:02:55.8]} 7. c3 {[%clk 0:03:00.9]} 7... Be7 {[%clk 0:02:56.3]} 8. d4
{[%clk 0:03:01.5]} 8... O-O {[%clk 0:02:56.7]} 9. Rd1 {[%clk 0:02:47.8]} 9...
Rc8 {[%clk 0:02:54.8]} 10. e5 {[%clk 0:02:42.6]} 10... Ne8 {[%clk 0:02:54.4]}
11. Bf4 {[%clk 0:02:41.3]} 11... cxd4 {[%clk 0:02:12.6]} 12. cxd4 {[%clk
0:02:26.8]} 12... Nb6 {[%clk 0:02:12.5]} 13. Nc3 {[%clk 0:02:24.3]} 13... Nc7
{[%clk 0:02:12.6]} 14. Ne4 {[%clk 0:02:16.8]} 14... Ncd5 {[%clk 0:02:10.2]} 15.
Bg3 {[%clk 0:02:15]} 15... dxe5 {[%clk 0:02:10.2]} 16. dxe5 {[%clk 0:02:12.7]}
16... Qd7 {[%clk 0:02:10]} 17. h4 {[%clk 0:01:52.7]} 17... Rc7 {[%clk
0:02:05.7]} 18. Nd6 {[%clk 0:01:37]} 18... Nc8 {[%clk 0:01:13.3]} 19. Ne4 {[%clk
0:01:22]} 19... Ncb6 {[%clk 0:01:00.8]} 20. Nd6 {[%clk 0:01:21.9]} 20... Nc8
{[%clk 0:00:39.7]} 21. Ne4 {[%clk 0:01:21.3]} 21... Qa4 {[%clk 0:00:39.9]} 22.
b3 {[%clk 0:00:53.6]} 22... Qa3 {[%clk 0:00:35.9]} 23. h5 {[%clk 0:00:51.3]}
23... h6 {[%clk 0:00:35.6]} 24. Rd4 {[%clk 0:00:39.4]} 24... Ncb6 {[%clk
0:00:31.1]} 25. Rad1 {[%clk 0:00:36.7]} 25... Rc1 {[%clk 0:00:27]} 26. Rxc1
{[%clk 0:00:18.2]} 26... Qxc1+ {[%clk 0:00:27.9]} 27. Rd1 {[%clk 0:00:18.7]}
27... Nc3 {[%clk 0:00:23.6]} 28. Nxc3 {[%clk 0:00:16.9]} 28... Qxc3 {[%clk
0:00:24.5]} 29. Nd2 {[%clk 0:00:12.6]} 29... Qc2 {[%clk 0:00:20.5]} 30. f4
{[%clk 0:00:05]} 30... Rd8 {[%clk 0:00:19.1]} 31. Be1 {[%clk 0:00:05.7]} 31...
Bb4 {[%clk 0:00:10.8]} 32. g3 {[%clk 0:00:02.1]} 32... Rd3 {[%clk 0:00:09.3]}
33. Kg2 {[%clk 0:00:02.1]} 33... Nd5 {[%clk 0:00:07.7]} 34. Kf2 {[%clk
0:00:01.8]} 34... Bc5+ {[%clk 0:00:07.1]} 35. Kg2 {[%clk 0:00:01.4]} 35... Ne3+
{[%clk 0:00:06.9]} 36. Kh2 {[%clk 0:00:02.2]} 36... Nxd1 {[%clk 0:00:05.9]} 37.
Qxd1 {[%clk 0:00:03.1]} 37... Qxd1 {[%clk 0:00:05.8]} 0-1

[Event "Late-Titled-Tuesday-Blitz-February-13-2024"]
[Site "Chess.com"]
[Date "2024.02.13"]
[Round "1"]
[White "TheSilmarils"]
[Black "cukricek"]
[Result "1-0"]
[WhiteElo "2850"]
[BlackElo "2451"]
[TimeControl "180+1"]
[EndTime "14:07:30 PST"]
[Termination "TheSilmarils won by resignation"]

1. Nf3 {[%clk 0:03:00.9]} 1... Nf6 {[%clk 0:02:59.5]} 2. c4 {[%clk 0:03:00.1]}
2... g6 {[%clk 0:02:58.8]} 3. Nc3 {[%clk 0:03:00.3]} 3... Bg7 {[%clk 0:02:59.4]}
4. e4 {[%clk 0:02:59.8]} 4... c5 {[%clk 0:02:58.2]} 5. d4 {[%clk 0:02:59.6]}
5... cxd4 {[%clk 0:02:57.8]} 6. Nxd4 {[%clk 0:03:00.5]} 6... Nc6 {[%clk
0:02:57.2]} 7. Be3 {[%clk 0:03:01.1]} 7... d6 {[%clk 0:02:57]} 8. Be2 {[%clk
0:03:01.1]} 8... O-O {[%clk 0:02:57.6]} 9. Nc2 {[%clk 0:02:59.6]} 9... a5 {[%clk
0:02:55.8]} 10. O-O {[%clk 0:02:58.8]} 10... a4 {[%clk 0:02:56.2]} 11. f3 {[%clk
0:02:54.7]} 11... Qa5 {[%clk 0:02:56.4]} 12. Kh1 {[%clk 0:02:30.4]} 12... Be6
{[%clk 0:02:56.4]} 13. Nd5 {[%clk 0:01:47.1]} 13... Bxd5 {[%clk 0:02:42.1]} 14.
cxd5 {[%clk 0:01:41.4]} 14... Ne5 {[%clk 0:02:42.6]} 15. Na3 {[%clk 0:01:39.6]}
15... Rfc8 {[%clk 0:02:39.6]} 16. Rc1 {[%clk 0:01:25.3]} 16... Qb4 {[%clk
0:02:32.3]} 17. Qd2 {[%clk 0:01:25.2]} 17... Qxd2 {[%clk 0:02:27]} 18. Bxd2
{[%clk 0:01:26.1]} 18... Ned7 {[%clk 0:02:25]} 19. Bb5 {[%clk 0:01:13.6]} 19...
Nc5 {[%clk 0:02:25.2]} 20. Rc2 {[%clk 0:01:13.6]} 20... Nfd7 {[%clk 0:02:25.1]}
21. Rfc1 {[%clk 0:01:13.5]} 21... Ne5 {[%clk 0:02:17.7]} 22. Be3 {[%clk
0:01:08.7]} 22... b6 {[%clk 0:02:14]} 23. h3 {[%clk 0:01:04.2]} 23... Rcb8
{[%clk 0:02:01.9]} 24. Kg1 {[%clk 0:00:58.4]} 24... Ned3 {[%clk 0:01:58.4]} 25.
Rb1 {[%clk 0:00:57.6]} 25... Nb4 {[%clk 0:01:56.1]} 26. Rd2 {[%clk 0:00:56.6]}
26... Nxa2 {[%clk 0:01:53.6]} 27. Bc6 {[%clk 0:00:54.9]} 27... Ra7 {[%clk
0:01:43.1]} 28. Nb5 {[%clk 0:00:51.8]} 28... Ra5 {[%clk 0:01:43.7]} 29. Na3
{[%clk 0:00:35.8]} 29... Nb4 {[%clk 0:01:41.3]} 30. Bb5 {[%clk 0:00:35.9]} 30...
Ra7 {[%clk 0:01:36.5]} 31. Kf1 {[%clk 0:00:32.3]} 31... Rc7 {[%clk 0:01:36.1]}
32. Rdd1 {[%clk 0:00:25.2]} 32... Ra8 {[%clk 0:01:30.5]} 33. Rdc1 {[%clk
0:00:25]} 33... Rac8 {[%clk 0:01:28.4]} 34. Ke2 {[%clk 0:00:24.4]} 34... Ra8
{[%clk 0:01:19.5]} 35. Rc4 {[%clk 0:00:23.4]} 35... Nbd3 {[%clk 0:01:13.7]} 36.
Rc2 {[%clk 0:00:20.5]} 36... Nb4 {[%clk 0:00:54.2]} 37. Rc4 {[%clk 0:00:20.7]}
37... Nbd3 {[%clk 0:00:53.1]} 38. Rc2 {[%clk 0:00:15.6]} 38... Nb4 {[%clk
0:00:51.4]} 39. Rcc1 {[%clk 0:00:16.1]} 39... Na2 {[%clk 0:00:49]} 40. Rc4
{[%clk 0:00:16]} 40... Rac8 {[%clk 0:00:40.3]} 41. Ra1 {[%clk 0:00:16.3]} 41...
Bxb2 {[%clk 0:00:13.7]} 42. Rxa2 {[%clk 0:00:16.3]} 42... Bxa3 {[%clk
0:00:13.7]} 43. Rxa3 {[%clk 0:00:17.2]} 43... Nb3 {[%clk 0:00:12.1]} 44. Rxc7
{[%clk 0:00:16.5]} 44... Rxc7 {[%clk 0:00:13]} 45. Bxa4 {[%clk 0:00:16.9]} 45...
Nc5 {[%clk 0:00:12.5]} 46. Bc6 {[%clk 0:00:16.8]} 46... e6 {[%clk 0:00:11.6]}
47. Bd4 {[%clk 0:00:17]} 47... exd5 {[%clk 0:00:11.6]} 48. Ra8+ {[%clk
0:00:16.8]} 1-0

[Event "Late-Titled-Tuesday-Blitz-February-13-2024"]
[Site "Chess.com"]
[Date "2024.02.13"]
[Round "1"]
[White "Jenia84"]
[Black "chegueps"]
[Result "0-1"]
[WhiteElo "2308"]
[BlackElo "2654"]
[TimeControl "180+1"]
[EndTime "14:07:31 PST"]
[Termination "chegueps won on time"]

1. Nf3 {[%clk 0:02:14.4]} 1... Nf6 {[%clk 0:02:58.3]} 2. g3 {[%clk 0:02:14.3]}
2... g6 {[%clk 0:02:58.9]} 3. Bg2 {[%clk 0:02:14.7]} 3... Bg7 {[%clk 0:02:59.5]}
4. O-O {[%clk 0:02:14.7]} 4... O-O {[%clk 0:03:00.4]} 5. c4 {[%clk 0:02:12.8]}
5... d6 {[%clk 0:03:00.6]} 6. Nc3 {[%clk 0:02:12.6]} 6... Nbd7 {[%clk
0:02:58.4]} 7. d4 {[%clk 0:02:11.4]} 7... e5 {[%clk 0:02:58.8]} 8. dxe5 {[%clk
0:02:11]} 8... dxe5 {[%clk 0:02:58.9]} 9. Bg5 {[%clk 0:02:10]} 9... h6 {[%clk
0:02:53.4]} 10. Bxf6 {[%clk 0:02:10]} 10... Bxf6 {[%clk 0:02:54.3]} 11. Nd5
{[%clk 0:02:08.5]} 11... Bg7 {[%clk 0:02:53.8]} 12. Qc2 {[%clk 0:02:07.2]} 12...
c6 {[%clk 0:02:52.5]} 13. Ne3 {[%clk 0:02:05.3]} 13... Qe7 {[%clk 0:02:50.3]}
14. Rfd1 {[%clk 0:02:03.8]} 14... a5 {[%clk 0:02:46.8]} 15. Rac1 {[%clk
0:02:00.6]} 15... Nc5 {[%clk 0:02:46.7]} 16. Nd2 {[%clk 0:01:55.2]} 16... f5
{[%clk 0:02:45]} 17. Nb3 {[%clk 0:01:51.5]} 17... Ne6 {[%clk 0:02:45.6]} 18. a4
{[%clk 0:01:45]} 18... Nc5 {[%clk 0:02:34.7]} 19. Nxc5 {[%clk 0:01:40.8]} 19...
Qxc5 {[%clk 0:02:35.6]} 20. b3 {[%clk 0:01:40.8]} 20... Be6 {[%clk 0:02:33.4]}
21. Nf1 {[%clk 0:01:36.3]} 21... e4 {[%clk 0:02:28.4]} 22. e3 {[%clk 0:01:33.9]}
22... g5 {[%clk 0:02:11.6]} 23. Nd2 {[%clk 0:01:32.5]} 23... h5 {[%clk
0:02:06.1]} 24. Bh3 {[%clk 0:01:31.4]} 24... Rae8 {[%clk 0:01:40.5]} 25. Nb1
{[%clk 0:01:26.2]} 25... f4 {[%clk 0:01:11.6]} 26. Bxe6+ {[%clk 0:01:22.4]}
26... Rxe6 {[%clk 0:01:12.5]} 27. Nc3 {[%clk 0:01:18.6]} 27... Qf5 {[%clk
0:01:12.3]} 28. Qe2 {[%clk 0:01:12.7]} 28... f3 {[%clk 0:01:09.5]} 29. Qf1
{[%clk 0:01:12.5]} 29... h4 {[%clk 0:01:06.6]} 30. Rd7 {[%clk 0:01:04.1]} 30...
Rh6 {[%clk 0:01:04.7]} 31. Rd2 {[%clk 0:00:37.9]} 31... g4 {[%clk 0:00:56.2]}
32. c5 {[%clk 0:00:31.1]} 32... Kh8 {[%clk 0:00:34.3]} 33. Rd6 {[%clk
0:00:30.1]} 33... Rh7 {[%clk 0:00:31.4]} 34. Rd2 {[%clk 0:00:22]} 34... Be5
{[%clk 0:00:30]} 35. Nxe4 {[%clk 0:00:12.4]} 35... Qxe4 {[%clk 0:00:27.9]} 36.
Rc4 {[%clk 0:00:12.9]} 36... Qf5 {[%clk 0:00:20.5]} 37. Rc1 {[%clk 0:00:08.4]}
37... Qg5 {[%clk 0:00:10.6]} 38. Rcd1 {[%clk 0:00:08.5]} 38... hxg3 {[%clk
0:00:10.4]} 39. fxg3 {[%clk 0:00:06.3]} 39... Qxe3+ {[%clk 0:00:10.4]} 40. Kh1
{[%clk 0:00:06.7]} 40... Bxg3 {[%clk 0:00:09.1]} 0-1

[Event "Late-Titled-Tuesday-Blitz-February-13-2024"]
[Site "Chess.com"]
[Date "2024.02.13"]
[Round "1"]
[White "Statham_01"]
[Black "Dewarfd"]
[Result "1-0"]
[WhiteElo "2553"]
[BlackElo "2150"]
[TimeControl "180+1"]
[EndTime "14:07:31 PST"]
[Termination "Statham_01 won by checkmate"]

1. e4 {[%clk 0:02:51.4]} 1... c5 {[%clk 0:02:59.3]} 2. Nf3 {[%clk 0:02:51.3]}
2... g6 {[%clk 0:02:59.5]} 3. c3 {[%clk 0:02:50.7]} 3... d5 {[%clk 0:02:58.5]}
4. exd5 {[%clk 0:02:50.3]} 4... Qxd5 {[%clk 0:02:59.4]} 5. d4 {[%clk 0:02:51.2]}
5... Bg7 {[%clk 0:02:58.9]} 6. Be3 {[%clk 0:02:50.7]} 6... cxd4 {[%clk
0:02:55.7]} 7. cxd4 {[%clk 0:02:51.6]} 7... Nf6 {[%clk 0:02:43.7]} 8. Nc3 {[%clk
0:02:52.5]} 8... Qd6 {[%clk 0:02:43.8]} 9. h3 {[%clk 0:02:51.2]} 9... O-O {[%clk
0:02:43.6]} 10. Bd3 {[%clk 0:02:51.6]} 10... Rd8 {[%clk 0:02:43.4]} 11. O-O
{[%clk 0:02:51.7]} 11... a6 {[%clk 0:02:42.6]} 12. Rc1 {[%clk 0:02:51.5]} 12...
Nc6 {[%clk 0:02:34]} 13. Qd2 {[%clk 0:02:51.2]} 13... Be6 {[%clk 0:02:23.3]} 14.
Bf4 {[%clk 0:02:50.2]} 14... Qd7 {[%clk 0:02:08.2]} 15. Be3 {[%clk 0:02:36.2]}
15... b5 {[%clk 0:01:33]} 16. Rfd1 {[%clk 0:02:34.6]} 16... Bf5 {[%clk
0:01:28.8]} 17. Be2 {[%clk 0:02:26.2]} 17... Rac8 {[%clk 0:01:23.3]} 18. Nh4
{[%clk 0:02:26.3]} 18... Ne4 {[%clk 0:01:19.5]} 19. Nxe4 {[%clk 0:02:25.4]}
19... Bxe4 {[%clk 0:01:20.4]} 20. Bg4 {[%clk 0:02:19.8]} 20... e6 {[%clk
0:01:16.6]} 21. Bg5 {[%clk 0:02:13.6]} 21... Re8 {[%clk 0:01:12.4]} 22. Bh6
{[%clk 0:02:10.7]} 22... Qxd4 {[%clk 0:00:51.2]} 23. Qe2 {[%clk 0:01:47.5]}
23... Qe5 {[%clk 0:00:43.8]} 24. Bxg7 {[%clk 0:01:47.2]} 24... Kxg7 {[%clk
0:00:44.3]} 25. b4 {[%clk 0:01:37.8]} 25... Nxb4 {[%clk 0:00:29.8]} 26. Nf3
{[%clk 0:01:25.5]} 26... Qf4 {[%clk 0:00:22.4]} 27. Rxc8 {[%clk 0:01:23.9]}
27... Rxc8 {[%clk 0:00:22.5]} 28. Qb2+ {[%clk 0:01:19.5]} 28... e5 {[%clk
0:00:09.1]} 29. Qxb4 {[%clk 0:01:18.2]} 29... Bxf3 {[%clk 0:00:09.2]} 30. Qxf4
{[%clk 0:01:18.5]} 30... exf4 {[%clk 0:00:09.3]} 31. Bxf3 {[%clk 0:01:16.8]}
31... Rc2 {[%clk 0:00:08.7]} 32. Bd5 {[%clk 0:01:16.3]} 32... b4 {[%clk
0:00:07.8]} 33. Bb3 {[%clk 0:01:16.7]} 33... Rb2 {[%clk 0:00:07.8]} 34. Rd7
{[%clk 0:01:17.2]} 34... a5 {[%clk 0:00:07.9]} 35. Rxf7+ {[%clk 0:01:17.3]}
35... Kh6 {[%clk 0:00:08.2]} 36. Rxf4 {[%clk 0:01:18.1]} 36... Kg5 {[%clk
0:00:06.1]} 37. Rg4+ {[%clk 0:01:17.9]} 37... Kf6 {[%clk 0:00:06.4]} 38. f3
{[%clk 0:01:17.8]} 38... h5 {[%clk 0:00:04.8]} 39. Rc4 {[%clk 0:01:17.8]} 39...
g5 {[%clk 0:00:03.3]} 40. h4 {[%clk 0:01:18.2]} 40... gxh4 {[%clk 0:00:03.3]}
41. Kh2 {[%clk 0:01:18.2]} 41... Kg5 {[%clk 0:00:01.9]} 42. Kh3 {[%clk
0:01:18.6]} 42... a4 {[%clk 0:00:01.4]} 43. Rc5+ {[%clk 0:01:19.5]} 43... Kf4
{[%clk 0:00:01.6]} 44. Rc4+ {[%clk 0:01:19.4]} 44... Ke3 {[%clk 0:00:01.2]} 45.
Re4+ {[%clk 0:01:20]} 45... Kf2 {[%clk 0:00:01.4]} 46. Bxa4 {[%clk 0:01:20.8]}
46... Rxa2 {[%clk 0:00:02.2]} 47. Rxb4 {[%clk 0:01:21.2]} 47... Ra1 {[%clk
0:00:03.1]} 48. Kxh4 {[%clk 0:01:20.4]} 48... Rg1 {[%clk 0:00:04]} 49. Rb2+
{[%clk 0:01:18.8]} 49... Ke3 {[%clk 0:00:04.4]} 50. Kxh5 {[%clk 0:01:19.4]}
50... Kf4 {[%clk 0:00:04.9]} 51. Rb4+ {[%clk 0:01:18.5]} 51... Kg3 {[%clk
0:00:05.4]} 52. Rg4+ {[%clk 0:01:19.3]} 52... Kf2 {[%clk 0:00:05.8]} 53. f4
{[%clk 0:01:19.9]} 53... Ra1 {[%clk 0:00:06]} 54. f5 {[%clk 0:01:19.9]} 54...
Ra3 {[%clk 0:00:06]} 55. Kg6 {[%clk 0:01:20.1]} 55... Ra1 {[%clk 0:00:05.4]} 56.
f6 {[%clk 0:01:20.4]} 56... Rc1 {[%clk 0:00:06.3]} 57. f7 {[%clk 0:01:20.8]}
57... Rc6+ {[%clk 0:00:06.9]} 58. Bxc6 {[%clk 0:01:20.6]} 58... Kg1 {[%clk
0:00:07.2]} 59. f8=Q {[%clk 0:01:20.8]} 59... Kh2 {[%clk 0:00:08.1]} 60. Qf2
{[%clk 0:01:19.9]} 60... Kh1 {[%clk 0:00:06.9]} 61. g3# {[%clk 0:01:20.8]} 1-0